Cogmind - Beta 15 @@@ ROGUE MODE // 2025.05.16 @ 13:04:34 Player: Miles Result: Destroyed by G-47 Trooper with Particle Gun Performance ------------- Evolutions (2) 1000 Regions Visited (3) 600 Robots Destroyed (42) 210 Value Destroyed (961) 961 Prototype IDs (0) 0 Alien Tech Used (0) 0 Bonus (0) 0 TOTAL SCORE: 2771 Bonus ------- None Cogmind --------- Core Integrity 0/550 Matter 290/300 Energy 330/350 System Corruption 0% Temperature Cool (39) Movement Core (250) Ox4 Location -8/Materials Parts ------- > --- POWER (1) -------- (None) > --- PROPULSION (4) --- (None) > --- UTILITY (4) ------ Small Storage Unit High-capacity Battery > --- WEAPON (2) ------- Particle Gun Katana > --- INVENTORY (8) ---- Wheel Advanced Targeting Computer Particle Charger Particle Charger Particle Charger Peak State ------------ > --- POWER ------------ Deuterium Engine > --- PROPULSION ------- Flight Unit Cesium-ion Thruster Cesium-ion Thruster Cesium-ion Thruster > --- UTILITY ---------- Small Storage Unit Weight Redist. System ECM Suite Weapon Shielding > --- WEAPON ----------- Improved Datajack Katana > --- INVENTORY -------- Light Ion Engine Wheel Flight Unit Advanced Targeting Computer Particle Charger Particle Charger Particle Charger [Rating: 25] Favorites ----------- Power Ion Engine Engine Ion Engine Power Core Light Nuclear Core Propulsion Cesium-ion Thruster Wheel Wheel Flight Unit Cesium-ion Thruster Utility Small Storage Unit Device ECM Suite Storage Small Storage Unit Protection Weapon Shielding Weapon Assault Rifle Energy Gun Medium Laser Energy Cannon Light EM Pulse Cannon Ballistic Gun Assault Rifle Ballistic Cannon Light Cannon Launcher Grenade Launcher Impact Weapon Great Maul Slashing Weapon Katana Special Melee Weapon Improved Datajack Build | -11 -10 -9 -8 ------- Run | Yrd Mat Mat Mat Slots Evolved 4 | . . 2 2 Power . | . . . . Propulsion 2 | . . 1 1 Utility 2 | . . 1 1 Weapon . | . . . . Parts Attached 45 | 10 4 12 19 Power 5 | 1 . 1 3 Engine 3 | 1 . 1 1 Core 2 | . . . 2 Reactor . | . . . . Propulsion 16 | 4 . 4 8 Treads . | . . . . Leg . | . . . . Wheel 4 | 4 . . . Hover . | . . . . Flight 12 | . . 4 8 Utility 9 | 2 2 2 3 Device 3 | 1 . 2 . Storage 5 | 1 2 . 2 Processor . | . . . . Hackware . | . . . . Protection 1 | . . . 1 Artifact . | . . . . Weapon 15 | 3 2 5 5 Energy Gun 2 | 1 . . 1 Energy Cannon 1 | . . 1 . Ballistic Gun 5 | 2 . 3 . Ballistic Cannon 1 | . 1 . . Launcher 1 | . . 1 . Special Weapon . | . . . . Impact Weapon 2 | . 1 . 1 Slashing Weapon 2 | . . . 2 Piercing Weapon . | . . . . Special Melee Weapon 1 | . . . 1 Unidentified Prototypes . | . . . . Parts Lost 21 | . 1 5 15 Power 4 | . . 1 3 Propulsion 10 | . 1 1 8 Utility 2 | . . . 2 Weapon 5 | . . 3 2 Highest Loss Streak 9 | . 1 3 9 To Critical Strikes . | . . . . Average Backups 7 | 5 7 7 7 Power . | 1 1 . . Propulsion 3 | 3 4 3 1 Utility 2 | . 1 1 3 Weapon . | . 1 . . Tool/Special . | . . . . Unused Backups 10 | 2 3 . 5 Power . | . . . . Propulsion 5 | 2 2 . 1 Utility 5 | . 1 . 4 Weapon . | . . . . Tool/Special . | . . . . Average Slot Usage (%) 86 | . 99 75 78 Engine 9 | . 13 10 3 Core 1 | . . . 3 Wheel 11 | . 28 . . Flight 17 | . . 29 28 Device 6 | . 2 10 8 Storage 17 | . 25 11 12 Protection 1 | . . . 4 Energy Cannon 1 | . . 2 1 Ballistic Gun 7 | . 15 5 . Ballistic Cannon 6 | . 12 3 . Slashing Weapon 2 | . . . 7 Special Melee Weapon 2 | . . . 6 Peak Build Rating 25 | 10 10 16 25 Average Rating 11 | 5 7 13 18 On Entrance 7 | . 10 7 12 Naked Turns . | . . . . Heaviest Build 21 | 15 16 18 21 Greatest Support 26 | 26 20 15 25 Greatest Overweight (x) 5 | 1 . 5 3 Average Overweight (x) . | . . . . Largest Inventory Capacity 8 | 8 8 8 8 Average Capacity 7 | 7 8 8 8 Most Carried 8 | 8 8 8 8 Average Carried 7 | 6 7 7 7 Final Capacity 8 | 8 8 8 8 Final Carried 8 | 8 8 5 5 Class Distribution -------------------- 53% | Mutant 46% | Sprinter Dominant Class ---------------- Mutant | -10/Materials Sprinter | -9/Materials Sprinter | -8/Materials Resources | -11 -10 -9 -8 ----------- Run | Yrd Mat Mat Mat Matter Collected 1025 | 332 149 130 414 Remotely . | . . . . Salvage Created 1300 | 208 229 306 557 Parts 79 | 19 15 10 35 Haulers Intercepted 2 | . . 1 1 Recyclers Shooed . | . . . . Parts Field Recycled . | . . . . Retrieved Matter . | . . . . Parts Self-Destructed . | . . . . Prevented . | . . . . Kills | -11 -10 -9 -8 ------- Run | Yrd Mat Mat Mat Combat Hostiles Destroyed 26 | . 6 8 12 Melee 12 | . . . 12 Guns 2 | . 2 . . Cannons 7 | . 4 3 . AOE 4 | . . 4 . Classes Destroyed 10 | 3 3 2 2 Worker 4 | 1 1 1 1 Builder 1 | . . . 1 Tunneler 5 | 5 . . . Hauler 2 | . . 1 1 Recycler 2 | 1 . 1 . Watcher 2 | . 1 1 . Swarmer 8 | . 1 3 4 Grunt 13 | . 5 1 7 Duelist 1 | . . . 1 Sentry 4 | . . 4 . Best Kill Streak 7 | 6 3 7 4 Combat Bots Only 4 | . 2 3 4 Max Kills in Single Turn 2 | 2 1 2 1 Gunslinging . | . . . . Exploded 2 | . . 2 . Melee 1 | . . . 1 Uniques/NPCs Destroyed . | . . . . Combat | -11 -10 -9 -8 -------- Run | Yrd Mat Mat Mat Hostile Shots Fired 198 | . 49 47 102 Missed 58 | . 12 21 25 Hits 140 | . 37 26 77 Melee 6 | . . . 6 Projectile 134 | . 37 26 71 Critical Strikes 10 | . . 3 7 Damage Taken 2081 | . 445 377 1259 Core 738 | . 78 101 559 Absorbed by Shields . | . . . . Redirected to Shielding 2 | . . . 2 Regen/Repaired (Parts) 37 | . 37 . . Core Remaining (%) 80 | 100 68 74 . Volleys Fired 66 | 9 22 32 3 Largest 2 | 2 2 2 1 Hottest 65 | 40 50 56 65 Shots Fired 98 | 18 44 33 3 Gun 49 | 18 22 7 2 Cannon 42 | . 22 19 1 Launcher 7 | . . 7 . Special . | . . . . Kinetic 81 | 18 44 19 . Thermal 2 | . . . 2 Explosive 7 | . . 7 . Electromagnetic 8 | . . 7 1 Robot Hit Streak 12 | 11 5 12 9 Robot Miss Streak 4 | 1 4 3 1 Penetration Max . | . . . . Secondary Targets . | . . . . Shots Hit Robots 95 | 13 23 26 33 Core Hits 54 | 7 11 17 19 Critical Kills . | . . . . Critical Parts Destroyed 1 | . 1 . . Critical Strikes 8 | . 3 2 3 Destroy 1 | . 1 . . Blast 4 | . 2 2 . Sever 3 | . . . 3 Melee Attacks 52 | . 3 . 49 Impact 3 | . 3 . . Slashing 46 | . . . 46 Piercing . | . . . . Sneak Attacks 4 | . . . 4 Combat Hostiles . | . . . . Follow-up Attacks . | . . . . Damage Inflicted 2472 | 188 414 889 981 Guns 442 | 188 166 73 15 Cannons 529 | . 213 291 25 Explosions 525 | . . 525 . Melee 971 | . 30 . 941 Ramming 5 | . 5 . . Kinetic 817 | 188 379 250 . Thermal 15 | . . . 15 Explosive 525 | . . 525 . Electromagnetic 139 | . . 114 25 Impact 30 | . 30 . . Slashing 941 | . . . 941 Piercing . | . . . . Highest Corruption . | . . . . Average Corruption . | . . . . Corruption Purged . | . . . . Corruption Blocked . | . . . . Overload Shots . | . . . . Overflow Damage 84 | . . 38 46 Projectiles . | . . . . Explosions 38 | . . 38 . Melee 46 | . . . 46 Knockbacks 5 | . 4 1 . Impact . | . . . . Kinetic 5 | . 4 1 . Secondary . | . . . . Self-Inflicted Damage 2 | . 2 . . Shots . | . . . . Rammed 1 | . 1 . . Targets Rammed 1 | . 1 . . Kicked . | . . . . Crushed . | . . . . Highest Temperature 43 | . 12 43 14 Average Temperature 10 | . 3 18 7 Received Heat Transfer 978 | . 213 153 612 Siege Activations . | . . . . Martial Activations . | . . . . Shielding Activations . | . . . . Robots Disrupted . | . . . . Combat Hostiles . | . . . . Robots Corrupted 1 | . . 1 . Combat Hostiles 1 | . . 1 . Parts Fried 1 | . . 1 . Impact Corruptions . | . . . . Robots Melted . | . . . . Combat Hostiles . | . . . . Parts Melted . | . . . . Heat Transferred 37 | . . . 37 Parts Sabotaged . | . . . . Parts Stolen . | . . . . Parts Stripped . | . . . . Power Chain Reactions . | . . . . Alert | -11 -10 -9 -8 ------- Run | Yrd Mat Mat Mat Maximum Alert Level . | . . . . Low Security (%) 100 | 100 100 100 100 Level 1 . | . . . . Level 2 . | . . . . Level 3 . | . . . . Level 4 . | . . . . Level 5 . | . . . . High Security . | . . . . Max Security . | . . . . Peak Influence 182 | 15 100 182 176 Initial 49 | . . 7 49 Average 65 | 3 43 93 89 Influence Increases 981 | 35 217 312 417 Destroy 0b10 Robot/C 520 | . 120 160 240 Destroy 0b10 Robot/NC 80 | 35 10 20 15 Destroy Leader 128 | . 22 64 42 Successful Hack 5 | . 5 . . Destroy Structure 23 | . . 23 . Partial Spotted 45 | . . 45 . Lose Combat Pursuer 180 | . 60 . 120 Influence Decreases 845 | 35 200 212 398 Entered New Map 78 | . . 10 68 Time Decay 562 | 35 190 157 180 Lost Part 205 | . 10 45 150 Squads Dispatched 2 | . . 1 1 Investigation . | . . . . Extermination . | . . . . Reinforcement 2 | . . 1 1 Assault . | . . . . Garrison . | . . . . Intercept . | . . . . Searches Triggered . | . . . . Construction Impeded . | . . . . Haulers Reinforced . | . . . . Active Scanning Responses . | . . . . Cargo Convoy Interrupts . | . . . . Stealth | -11 -10 -9 -8 --------- Run | Yrd Mat Mat Mat Distress Signals 5 | . 1 2 2 Communications Jammed . | . . . . Distress Signals . | . . . . Times Spotted 51 | . 14 13 24 Peak Tracking Total 7 | . 6 6 7 Tactical Retreats 8 | . 3 2 3 Traps | -11 -10 -9 -8 ------- Run | Yrd Mat Mat Mat Traps Triggered 1 | . . . 1 Indirectly . | . . . . Trap Hack Attempts . | . . . . Triggered . | . . . . Disarmed . | . . . . Reprogrammed . | . . . . Reused . | . . . . Traps Extracted . | . . . . Installed . | . . . . Triggered . | . . . . Machines | -11 -10 -9 -8 ---------- Run | Yrd Mat Mat Mat Machines Disabled . | . . . . Max in Single Turn . | . . . . Machines Repaired . | . . . . Machines Dismantled . | . . . . Machines Sabotaged . | . . . . Overloaded Fab Kills . | . . . . Hacking | -11 -10 -9 -8 --------- Run | Yrd Mat Mat Mat Machines Accessed 7 | . 5 1 1 Terminals 6 | . 4 1 1 Fabricators . | . . . . Repair Stations 1 | . 1 . . Recycling Units . | . . . . Scanalyzers . | . . . . Garrison Access . | . . . . Total Hacks 15 | . 11 1 3 Successful 8 | . 7 . 1 Failed 7 | . 4 1 2 Catastrophic 2 | . . 1 1 Database Lockouts . | . . . . Manual 13 | . 9 1 3 Terminals 13 | . 9 1 3 Fabricators . | . . . . Repair Stations 2 | . 2 . . Recycling Units . | . . . . Scanalyzers . | . . . . Garrison Access . | . . . . Terminal Hacks . | . . . . Fabricator Hacks . | . . . . Repair Station Hacks 2 | . 2 . . Scan Component 1 | . 1 . . Repair 1 | . 1 . . Recycling Unit Hacks . | . . . . Scanalyzer . | . . . . Garrison Access Hacks . | . . . . Unauthorized Hacks 6 | . 5 . 1 Terminals 6 | . 5 . 1 Track 3 | . 3 . . Botnet 3 | . 2 . 1 Fabricators . | . . . . Repair Stations . | . . . . Recycling Units . | . . . . Scanalyzers . | . . . . Garrison Access . | . . . . Data Cores Recovered . | . . . . Used . | . . . . Hacking Detections 3 | . 1 1 1 Full Trace Events 1 | . . . 1 Feedback Events . | . . . . Feedback Blocked . | . . . . Robot Schematics Acquired . | . . . . Robots Built . | . . . . Authchips . | . . . . Time . | . . . . Total Robot Build Rating . | . . . . Part Schematics Acquired . | . . . . Parts Built . | . . . . Authchips . | . . . . Time . | . . . . Total Part Build Rating . | . . . . Parts Repaired 1 | . 1 . . Time 26 | . 26 . . Parts Recycled . | . . . . Recycled Matter . | . . . . Retrieved Matter . | . . . . Retrieved Components . | . . . . Parts Scanalyzed . | . . . . Part Schematics Acquired . | . . . . Parts Damaged . | . . . . Bothacking | -11 -10 -9 -8 ------------ Run | Yrd Mat Mat Mat Used RIF Installer . | . . . . Robots Hacked 1 | . . . 1 Non-combat 1 | . . . 1 Combat . | . . . . Robot Hacks Applied 1 | . . . 1 parse_system 1 | . . . 1 Relay Couplers Released . | . . . . Fabnet Peak Effective % . | . . . . Robots Rewired . | . . . . Allies Hacked . | . . . . Hacks Repelled . | . . . . Allies | -11 -10 -9 -8 -------- Run | Yrd Mat Mat Mat Total Allies . | . . . . Largest Group . | . . . . Highest-Rated Group . | . . . . Highest-Rated Ally . | . . . . Total Orders . | . . . . Ally Attacks . | . . . . Total Damage . | . . . . Kills . | . . . . Allies Corrupted . | . . . . Allies Melted . | . . . . Intel | -11 -10 -9 -8 ------- Run | Yrd Mat Mat Mat Active Infowar (turns) 419 | 34 90 295 . Terrain 124 | 34 90 . . ECM 295 | . . 295 . Robot Analysis Total . | . . . . Derelict Logs Recovered . | . . . . Drone Launches . | . . . . Drone Recoveries . | . . . . Exploration | -11 -10 -9 -8 ------------- Run | Yrd Mat Mat Mat Turns Passed 1361 | 121 509 353 378 Spaces Moved 1600 | 84 464 496 556 Core 26 | 16 . 4 6 Treads . | . . . . Legs . | . . . . Wheels 532 | 68 464 . . Hover . | . . . . Flight 1042 | . . 492 550 Fastest Speed 27 | 50 80 29 27 Average Speed 49 | 78 80 34 33 Slowest Speed 300 | 100 80 300 275 Overloaded Moves . | . . . . Propulsion Burnouts . | . . . . Robots Hopped 1 | . . . 1 Potential Cave-ins . | . . . . Cave-ins Triggered . | . . . . Exploration Rate (%) 38 | 3 72 47 31 Regions Visited 3 Branch Regions . Pre-discovered Areas . | . . . . Known Exits Taken . | . . . . Unknown Exits Taken 3 | 1 1 1 . Scrap Searched . | . . . . Spaces Dug . | . . . . Terrain Destroyed 20 | . . 20 . Melee . | . . . . Projectile . | . . . . AOE 20 | . . 20 . Terrain Rammed . | . . . . Walls Destroyed . | . . . . Machines Disabled . | . . . . Actions | -11 -10 -9 -8 --------- Run | Yrd Mat Mat Mat Total 2001 | 123 554 650 674 Wait 155 | . 42 91 22 Move 1595 | 83 463 495 554 Hop 1 | . . . 1 Pick Up 38 | 17 7 3 11 Fast Attach 19 | 1 3 6 9 Attach 28 | 6 1 10 11 Detach 6 | . . 5 1 Swap 12 | 3 3 1 5 Drop 28 | 4 9 7 8 Fire 66 | 9 22 32 3 Melee 52 | . 3 . 49 Ram 1 | . 1 . . Kick . | . . . . Crush . | . . . . Escape Stasis . | . . . . Rewire . | . . . . Trap . | . . . . Miscellaneous . | . . . . Route ------- -11/Scrapyard -10/Materials (discovered 2 exits: *Mat / [*Min]) -9/Materials (discovered 2 exits: *Mat / [*Min]) -8/Materials History --------- Turn | Location | Event 3 | -11/Scrapyard | Discovered new exit (range 16) 122 | -11/Scrapyard | Entered Materials 312 | -10/Materials | Build established: Mutant 337 | -10/Materials | Discovered new exit (range 13) 489 | -10/Materials | Repaired Ion Engine 565 | -10/Materials | Discovered new exit (range 9) 631 | -10/Materials | Entered another Materials area 631 | -9/Materials | Evolved 2 slots: Propulsion x1, Utility x1 768 | -9/Materials | Discovered new exit (range 16) 959 | -9/Materials | Lost 3 parts (1p1n1w) 965 | -9/Materials | Discovered new exit (range 15) 973 | -9/Materials | Build established: Sprinter 984 | -9/Materials | Entered another Materials area 984 | -8/Materials | Evolved 2 slots: Propulsion x1, Utility x1 1171 | -8/Materials | Lost 5 parts (1p3n1u) 1324 | -8/Materials | Core integrity fell below 50% 1339 | -8/Materials | Core integrity fell below 20% 1353 | -8/Materials | Lost 9 parts (2p5n2w) 1362 | -8/Materials | Destroyed by G-47 Trooper with Particle Gun Last Messages --------------- 01321_ K-01 Serf collects debris. 01321_ Lgt. Nuclear Core destroyed. 01322_ Katana destroyed. 01325_ K-01 Serf collects debris. 01330_ U-05 Engineer builds a Door. 01330_ G-50 Soldier destroyed. 01331_ K-01 Serf collects debris. 01334_ Acquired 17 matter. 01335_ K-01 Serf collects debris. 01335_ Critical hit (Burn: +37). 01336_ K-01 Serf collects debris. 01337_ Critical hit (Burn: +37). 01338_ K-01 Serf collects debris. 01338_ G-47 Trooper destroyed. 01339_ K-01 Serf collects debris. 01345_ Critical hit (Burn: +37). 01352_ K-01 Serf destroyed. 01353_ K-01 Serf collects debris. 01357_ Acquired Particle Gun. 01362_ Critical hit (Burn: +37). Map ----- +----------------------------------------------------+ | | | | | | | | | | | | | | | ??????###################????????????????????????? | | ??????# ! #????????????????????????? | | ??????# #????????????????????????? | | ??????# """ """ """ """ #????????????????????????? | | ####### """ """ """ """ #????????????????????????? | | + """ """ """ """ #?#+#????????????????????? | | ####### #? ????????????????????? | | #?????#! #? ????????????????????? | | ##########+####+#####+###? ????????????????????? | | # # # ## #??? !????????????????????? | | # # # ## #??? ????????????????????? | | # # # ## #???# #????????????????????? | | + ]] # # " ## #???# #????????????????????? | | # ]! # # #T #####!#????????????????????? | | # ] # # ## !%#????????????????????? | | # ! # # ## #+##k###??????????????????? | | # ! # ### #### #==k!==#??????????????????? | | + # #?# #?# +!!%=*[#??????????????????? | | ##+####### #?# #?# #%@"""=#??????????????????? | | ## #??# #?# #?# /g*"" #??????????????????? | | ## #??# ### ### # """ #??????????????????? | | # #??# #| #??????????????????? | | # #### ########??????????????????? | | + # #?????????????????????????? | | # # #?????????????????????????? | | # # #?????????????????????????? | | ## # ######?????????????????????????? | | ?###### #######????????????????????????? | | ####### #????????????????????????? | | ! = * #????????????????????????? | | ########## #????????????????????????? | | ??# """=# #?????????????????????????? | | ??# ""R"*# #?????????????????????????? | | ??# ""[" # [ #?????????????????????????? | | ??# !!= + + !???????????????????????? | | ??# ^^=*# = ###### # ????????????????????????? | | ??#] =!#= #????????????????????????????????? | | ??######## #????????????????????????????????? | | ?????????# #????????????????????????????????? | | ?????????# #????????????????????????????????? | | ?????????# #????????????????????????????????? | | ?????????# #????????????????????????????????? | | ?????????##### ##????????????????????????????????? | +----------------------------------------------------+ Best States ------------- Heat Dissipation 31 Energy Generation 14 Energy Capacity 410 Matter Stores 300 Matter Capacity 350 Sight Range 16 Terrain Scan Range 16 Terrain Scan Density 10 ECM Strength 1 Additional Mass Support 6 Weapon Shielding 33 Evasion (%) 64 Item Schematics ----------------- None Robot Schematics ------------------ None Fabricated ------------ Nothing Repaired ---------- Ion Engine | 38% | -10/Materials Alien Tech Used ----------------- None Achievements -------------- None Challenges ------------ None Game ------ Seed ArchitectCompositeRedirector Manual? 0 Play Time 00:33:52 Cumulative 22.2 hours Start 2025.05.16 @ 12:28:19 End 2025.05.16 @ 13:04:34 Sessions 1 Manual Loads 0 Difficulty Rogue Special Mode None Game No. 44 Rogue 44 Adventurer 0 Explorer 0 Win Type - Total 0 Types 0/0/0/0/0/0/0/0/0/0 Lore% 6 Gallery% 22 Achievement% 18 Wizard Run 0 Options --------- Layout 1 ASCII 0 Keyboard 0 Movement Mouse Keybinds 0 Fullscreen 1 Font 24/Smallcaps Map View 50x35 Zoom Use 0% Tactical HUD 1 Map Filters NONE Filters NONE Steam 1 RUN: 7eea92ce-3c9e-4f99-9180-34ae98530239